fUST/lending_fUST_20241112
["ID","MTS","AMOUNT","RATE_DAILY","PERIOD"]
[342023626,1731366666669,-862.81,0.00025479,2]
[342023627,1731366666679,-500.0,0.00025479,2]
[342023628,1731366666688,-500.0,0.00025479,2]
[342023629,1731366666698,-4367.84,0.00025479,2]
[342023630,1731366666707,-630.54,0.00025479,2]
[342023631,1731366666716,-500.0,0.00025479,2]
[342023632,1731366666726,-708.15,0.00025479,2]
[342023633,1731366666741,-500.0,0.00025479,2]
[342023634,1731366666751,-1032.4,0.00025479,2]
[342023635,1731366666760,-500.0,0.00025479,2]
[342023636,1731366666770,-17226.76,0.00025479,2]
[342023637,1731366666779,-500.0,0.00025479,2]
[342023638,1731366666788,-3122.36,0.00025479,2]
[342023639,1731366666798,-500.0,0.00025479,2]
[342023640,1731366666807,-1500.0,0.00025647,2]
[342023641,1731366666816,-1500.0,0.00025647,2]
[342023642,1731366666826,-1500.0,0.00025647,2]
[342023643,1731366666836,-1500.0,0.00025647,2]
[342023644,1731366666846,-1500.0,0.00025647,2]
[342023645,1731366666855,-1500.0,0.00025647,2]
[342023646,1731366666865,-300.0,0.000257,2]
[342023647,1731366666874,-500.0,0.00025753,2]
[342023648,1731366666883,-500.0,0.00025753,2]
[342023649,1731366666893,-500.0,0.00025753,2]
[342023650,1731366666902,-500.0,0.00025753,2]
[342023651,1731366666911,-500.0,0.00025753,2]
[342023652,1731366666921,-605.39,0.00025753,2]
[342023653,1731366666931,-274.71325589,0.00025753,2]
[342023654,1731366666941,-500.0,0.00025753,2]
[342023655,1731366666950,-500.0,0.00025753,2]
[342023656,1731366666960,-500.0,0.00025753,2]
[342023657,1731366666970,-495.00413391,0.00025753,2]
[342023658,1731366666980,-1847.16,0.00025753,2]
[342023659,1731366666995,-500.0,0.00025753,2]
[342023660,1731366667005,-773.58,0.00025753,2]
[342023661,1731366667015,-892.78,0.00025753,2]
[342023662,1731366667024,-500.0,0.00025753,2]
[342023663,1731366667034,-1690.05,0.00025753,2]
[342023664,1731366667043,-500.0,0.00025753,2]
[342023665,1731366667053,-500.0,0.00025753,2]
[342023666,1731366667063,-1463.08,0.00025753,2]
[342023667,1731366667072,-597.21,0.00025753,2]
[342023668,1731366667081,-500.0,0.00025753,2]
[342023669,1731366667091,-500.0,0.00025753,2]
[342023670,1731366667100,-1032.03,0.00025753,2]
[342023671,1731366667109,-1391.59,0.00025753,2]
[342023672,1731366667119,-567.95,0.00025753,2]
[342023673,1731366667128,-500.0,0.00025753,2]
[342023674,1731366667138,-990.39,0.00025753,2]
[342023675,1731366667147,-616.05,0.00025753,2]
[342023676,1731366667156,-721.99,0.00025753,2]
[342023677,1731366667165,-500.0,0.00025753,2]
[342023678,1731366667174,-1000.2,0.00025753,2]
[342023679,1731366667183,-500.0,0.00025753,2]
[342023680,1731366667192,-3306.66,0.00025753,2]
[342023681,1731366667201,-913.04,0.00025753,2]
[342023682,1731366667210,-3266.61,0.00025753,2]
[342023683,1731366667220,-500.0,0.00025753,2]
[342023684,1731366667230,-546.62,0.00025753,2]
[342023685,1731366667243,-500.0,0.00025753,2]
[342023686,1731366667252,-515.82,0.00025753,2]
[342023687,1731366667261,-500.0,0.00025753,2]
[342023688,1731366667271,-1343.72,0.00025753,2]
[342023689,1731366667280,-1636.7,0.00025753,2]
[342023690,1731366667289,-1206.33,0.00025753,2]
[342023691,1731366667299,-3685.44,0.00025753,2]
[342023692,1731366667308,-862.81,0.00025753,2]
[342023693,1731366667318,-500.0,0.00025753,2]
[342023694,1731366667328,-500.0,0.00025753,2]
[342023695,1731366667338,-4367.84,0.00025753,2]
[342023696,1731366667347,-630.54,0.00025753,2]
[342023697,1731366667357,-500.0,0.00025753,2]
[342023698,1731366667366,-708.15,0.00025753,2]
[342023699,1731366667376,-500.0,0.00025753,2]
[342023700,1731366667385,-1032.4,0.00025753,2]
[342023701,1731366667394,-500.0,0.00025753,2]
[342023702,1731366667404,-17226.76,0.00025753,2]
[342023703,1731366667413,-500.0,0.00025753,2]
[342023704,1731366667422,-3122.36,0.00025753,2]
[342023705,1731366667431,-500.0,0.00025753,2]
[342023706,1731366667440,-350.0,0.00025768,2]
[342023707,1731366667450,-252.0,0.00025775,2]
[342023708,1731366667459,-1500.0,0.00025847,2]
[342023709,1731366667468,-618.20168808,0.00025847,2]
[342023710,1731366667478,-1500.0,0.00025847,2]
[342023711,1731366667490,-447.15735062,0.00025847,2]
[342023712,1731366667499,-504.70300389,0.00025847,2]
[342023713,1731366667509,-1500.0,0.00025847,2]
[342023714,1731366667604,-1500.0,0.00025847,2]
[342023715,1731366667613,-1500.0,0.00025847,2]
[342023716,1731366667623,-1500.0,0.00025847,2]
[342023717,1731366667632,-1005.35537002,0.00025847,2]
[342023718,1731366667641,-253.68604705,0.00025847,2]
[342023719,1731366667652,-1500.0,0.00025847,2]
[342023720,1731366667665,-200.0,0.0002588,15]
[342023721,1731366667674,-486.74808951,0.00025925,2]
[342023722,1731366667684,-587.0,0.00025967,2]
[342023723,1731366667694,-500.0,0.00026,20]
[342023724,1731366667703,-158.3,0.00026021,4]
[342023725,1731366667712,-164.844,0.00026027,7]
[342023726,1731366667722,-164.844,0.00026027,7]
[342023727,1731366667734,-500.0,0.00026027,2]
[342023728,1731366667746,-500.0,0.00026027,2]
[342023729,1731366667756,-500.0,0.00026027,2]
[342023730,1731366667766,-500.0,0.00026027,2]
[342023731,1731366667776,-500.0,0.00026027,2]
[342023732,1731366667785,-605.39,0.00026027,2]
[342023733,1731366667795,-500.0,0.00026027,2]
[342023734,1731366667805,-500.0,0.00026027,2]
[342023735,1731366667815,-500.0,0.00026027,2]
[342023736,1731366667826,-1847.16,0.00026027,2]
[342023737,1731366667835,-500.0,0.00026027,2]
[342023738,1731366667844,-773.58,0.00026027,2]
[342023739,1731366667854,-892.78,0.00026027,2]
[342023740,1731366667863,-500.0,0.00026027,2]
[342023741,1731366667873,-1690.05,0.00026027,2]
[342023742,1731366667883,-456.34993333,0.00026027,2]
[342023743,1731366667892,-500.0,0.00026027,2]
[342023744,1731366667901,-1463.08,0.00026027,2]
[342023745,1731366667910,-597.21,0.00026027,2]
[342023746,1731366667919,-500.0,0.00026027,2]
[342023747,1731366667929,-500.0,0.00026027,2]
[342023748,1731366667938,-1032.03,0.00026027,2]
[342023749,1731366667947,-1391.59,0.00026027,2]
[342023750,1731366667956,-567.95,0.00026027,2]
[342023751,1731366667965,-586.07742178,0.00026027,2]
[342023752,1731366667974,-990.39,0.00026027,2]
[342023753,1731366667983,-616.05,0.00026027,2]
[342023754,1731366667995,-721.99,0.00026027,2]
[342023755,1731366668003,-500.0,0.00026027,2]
[342023756,1731366668012,-1000.2,0.00026027,2]
[342023757,1731366668022,-500.0,0.00026027,2]
[342023758,1731366668031,-3306.66,0.00026027,2]
[342023759,1731366668040,-913.04,0.00026027,2]
[342023760,1731366668049,-3266.61,0.00026027,2]
[342023761,1731366668059,-500.0,0.00026027,2]
[342023762,1731366668070,-546.62,0.00026027,2]
[342023763,1731366668079,-500.0,0.00026027,2]
[342023764,1731366668089,-515.82,0.00026027,2]
[342023765,1731366668098,-500.0,0.00026027,2]
[342023766,1731366668108,-1343.72,0.00026027,2]
[342023767,1731366668117,-1636.7,0.00026027,2]
[342023768,1731366668126,-1206.33,0.00026027,2]
[342023769,1731366668135,-3685.44,0.00026027,2]
[342023770,1731366668144,-862.81,0.00026027,2]
[342023771,1731366668153,-500.0,0.00026027,2]
[342023772,1731366668163,-500.0,0.00026027,2]
[342023773,1731366668172,-4367.84,0.00026027,2]
[342023774,1731366668181,-630.54,0.00026027,2]
[342023775,1731366668190,-500.0,0.00026027,2]
[342023776,1731366668199,-708.15,0.00026027,2]
[342023777,1731366668208,-500.0,0.00026027,2]
[342023778,1731366668217,-1032.4,0.00026027,2]
[342023779,1731366668227,-500.0,0.00026027,2]
[342023780,1731366668240,-17226.76,0.00026027,2]
[342023781,1731366668249,-595.94087682,0.00026027,2]
[342023782,1731366668258,-3122.36,0.00026027,2]
[342023783,1731366668268,-500.0,0.00026027,2]
[342023784,1731366668277,-1500.0,0.00026047,2]
[342023785,1731366668286,-512.4231855,0.00026047,2]
[342023786,1731366668295,-1500.0,0.00026047,2]
[342023787,1731366668305,-1500.0,0.00026047,2]
[342023788,1731366668315,-530.0,0.00026137,2]
[342023789,1731366668324,-1123.0,0.00026151,2]
[342023790,1731366668333,-2391.0,0.00026151,2]
[342023791,1731366668343,-186.0,0.000263,2]
[342023792,1731366668352,-23252.76,0.000263,14]
[342023793,1731366668361,-1546.44,0.000263,14]
[342023794,1731366668371,-500.0,0.00026301,2]
[342023795,1731366668380,-500.0,0.00026301,2]
[342023796,1731366668389,-500.0,0.00026301,2]
[342023797,1731366668399,-500.0,0.00026301,2]
[342023798,1731366668408,-500.0,0.00026301,2]
[342023799,1731366668418,-605.39,0.00026301,2]
[342023800,1731366668427,-500.0,0.00026301,2]
[342023801,1731366668436,-500.0,0.00026301,2]
[342023802,1731366668446,-500.0,0.00026301,2]
[342023803,1731366668455,-1847.16,0.00026301,2]
[342023804,1731366668464,-500.0,0.00026301,2]
[342023805,1731366668474,-773.58,0.00026301,2]
[342023806,1731366668483,-892.78,0.00026301,2]
[342023807,1731366668497,-500.0,0.00026301,2]
[342023808,1731366668508,-1690.05,0.00026301,2]
[342023809,1731366668518,-500.0,0.00026301,2]
[342023810,1731366668527,-1463.08,0.00026301,2]
[342023811,1731366668536,-597.21,0.00026301,2]
[342023812,1731366668546,-500.0,0.00026301,2]
[342023813,1731366668555,-500.0,0.00026301,2]
[342023814,1731366668565,-1032.03,0.00026301,2]
[342023815,1731366668575,-1391.59,0.00026301,2]
[342023816,1731366668584,-567.95,0.00026301,2]
[342023817,1731366668594,-990.39,0.00026301,2]
[342023818,1731366668603,-616.05,0.00026301,2]
[342023819,1731366668612,-721.99,0.00026301,2]
[342023820,1731366668621,-500.0,0.00026301,2]
[342023821,1731366668631,-1000.2,0.00026301,2]
[342023822,1731366668641,-500.0,0.00026301,2]
[342023823,1731366668651,-3306.66,0.00026301,2]
[342023824,1731366668665,-913.04,0.00026301,2]
[342023825,1731366668674,-3266.61,0.00026301,2]
[342023826,1731366668683,-500.0,0.00026301,2]
[342023827,1731366668693,-546.62,0.00026301,2]
[342023828,1731366668703,-500.0,0.00026301,2]
[342023829,1731366668713,-515.82,0.00026301,2]
[342023830,1731366668722,-169.87711178,0.00026301,2]
[342023831,1731366668732,-1343.72,0.00026301,2]
[342023832,1731366668744,-1636.7,0.00026301,2]
[342023833,1731366668753,-1206.33,0.00026301,2]
[342023834,1731366668763,-3685.44,0.00026301,2]
[342023835,1731366668773,-862.81,0.00026301,2]
[342023836,1731366668783,-500.0,0.00026301,2]
[342023837,1731366668793,-500.0,0.00026301,2]
[342023838,1731366668803,-4367.84,0.00026301,2]
[342023839,1731366668813,-630.54,0.00026301,2]
[342023840,1731366668823,-500.0,0.00026301,2]
[342023841,1731366668833,-708.15,0.00026301,2]
[342023842,1731366668845,-500.0,0.00026301,2]
[342023843,1731366668856,-1032.4,0.00026301,2]
[342023844,1731366668866,-500.0,0.00026301,2]
[342023845,1731366668876,-17226.76,0.00026301,2]
[342023846,1731366668886,-3122.36,0.00026301,2]
[342023847,1731366668895,-500.0,0.00026301,2]
[342023848,1731366668904,-200.40515378,0.00026316,2]
[342023849,1731366668914,-660.0,0.00026384,2]
[342023850,1731366668923,-6042.74124358,0.00026396,2]
[342023851,1731366668932,-668.748051,0.000264,2]
[342023852,1731366668941,-179.250821,0.000264,2]
[342023853,1731366668950,-164.844,0.00026575,7]
[342023854,1731366668959,-164.844,0.00026575,7]
[342023855,1731366668968,-500.0,0.00026575,2]
[342023856,1731366668977,-500.0,0.00026575,2]
[342023857,1731366668987,-500.0,0.00026575,2]
[342023858,1731366668997,-530.94710082,0.00026575,2]
[342023859,1731366669007,-500.0,0.00026575,2]
[342023860,1731366669016,-605.39,0.00026575,2]
[342023861,1731366669025,-500.0,0.00026575,2]
[342023862,1731366669036,-500.0,0.00026575,2]
[342023863,1731366669045,-500.0,0.00026575,2]
[342023864,1731366669055,-1847.16,0.00026575,2]
[342023865,1731366669064,-500.0,0.00026575,2]
[342023866,1731366669073,-773.58,0.00026575,2]
[342023867,1731366669083,-892.78,0.00026575,2]
[342023868,1731366669092,-500.0,0.00026575,2]
[342023869,1731366669101,-1690.05,0.00026575,2]
[342023870,1731366669110,-500.0,0.00026575,2]
[342023871,1731366669120,-1463.08,0.00026575,2]
[342023872,1731366669129,-597.21,0.00026575,2]
[342023873,1731366669138,-500.0,0.00026575,2]
[342023874,1731366669147,-500.0,0.00026575,2]
[342023875,1731366669156,-1032.03,0.00026575,2]
[342023876,1731366669166,-1391.59,0.00026575,2]
[342023877,1731366669175,-567.95,0.00026575,2]
[342023878,1731366669185,-990.39,0.00026575,2]
[342023879,1731366669275,-616.05,0.00026575,2]
[342023880,1731366669285,-721.99,0.00026575,2]
[342023881,1731366669294,-617.15,0.00026575,2]
[342023882,1731366669303,-1000.2,0.00026575,2]
[342023883,1731366669313,-500.0,0.00026575,2]
[342023884,1731366669321,-3306.66,0.00026575,2]
[342023885,1731366669331,-913.04,0.00026575,2]
[342023886,1731366669341,-3266.61,0.00026575,2]
[342023887,1731366669350,-500.0,0.00026575,2]
[342023888,1731366669359,-546.62,0.00026575,2]
[342023889,1731366669368,-500.0,0.00026575,2]
[342023890,1731366669378,-515.82,0.00026575,2]
[342023891,1731366669387,-1343.72,0.00026575,2]
[342023892,1731366669397,-1636.7,0.00026575,2]
[342023893,1731366669407,-1206.33,0.00026575,2]
[342023894,1731366669417,-3685.44,0.00026575,2]
[342023895,1731366669426,-862.81,0.00026575,2]
[342023896,1731366669437,-500.0,0.00026575,2]
[342023897,1731366669446,-500.0,0.00026575,2]
[342023898,1731366669456,-4367.84,0.00026575,2]
[342023899,1731366669465,-630.54,0.00026575,2]
[342023900,1731366669474,-500.0,0.00026575,2]
[342023901,1731366669484,-708.15,0.00026575,2]
[342023902,1731366669496,-500.0,0.00026575,2]
[342023903,1731366669506,-1032.4,0.00026575,2]
[342023904,1731366669515,-500.0,0.00026575,2]
[342023905,1731366669525,-17226.76,0.00026575,2]
[342023906,1731366669535,-3122.36,0.00026575,2]
[342023907,1731366669544,-3060.59,0.000266,14]
[342023908,1731366669554,-300.0,0.000266,12]
[342023909,1731366669564,-158.3,0.00026601,5]
[342023910,1731366669573,-300.0,0.000267,2]
[342023911,1731366669583,-160.0,0.00026795,3]
[342023912,1731366669592,-164.844,0.00026849,7]
[342023913,1731366669602,-164.844,0.00026849,7]
[342023914,1731366669611,-500.0,0.00026849,2]
[342023915,1731366669620,-500.0,0.00026849,2]
[342023916,1731366669630,-500.0,0.00026849,2]
[342023917,1731366669639,-512.92533552,0.00026849,2]
[342023918,1731366669649,-605.39,0.00026849,2]
[342023919,1731366669658,-500.0,0.00026849,2]
[342023920,1731366669667,-500.0,0.00026849,2]
[342023921,1731366669677,-500.0,0.00026849,2]
[342023922,1731366669689,-1847.16,0.00026849,2]
[342023923,1731366669699,-500.0,0.00026849,2]
[342023924,1731366669708,-773.58,0.00026849,2]
[342023925,1731366669719,-892.78,0.00026849,2]
[342023926,1731366669729,-500.0,0.00026849,2]
[342023927,1731366669738,-1690.05,0.00026849,2]
[342023928,1731366669752,-1145.42,0.00026849,2]
[342023929,1731366669762,-500.0,0.00026849,2]
[342023930,1731366669771,-1463.08,0.00026849,2]
[342023931,1731366669780,-597.21,0.00026849,2]
[342023932,1731366669789,-500.0,0.00026849,2]
[342023933,1731366669798,-500.0,0.00026849,2]
[342023934,1731366669807,-1032.03,0.00026849,2]
[342023935,1731366669816,-1391.59,0.00026849,2]
[342023936,1731366669825,-567.95,0.00026849,2]
[342023937,1731366669835,-990.39,0.00026849,2]
[342023938,1731366669845,-616.05,0.00026849,2]
[342023939,1731366669855,-721.99,0.00026849,2]
[342023940,1731366669864,-1000.2,0.00026849,2]
[342023941,1731366669873,-500.0,0.00026849,2]
[342023942,1731366669883,-3306.66,0.00026849,2]
[342023943,1731366669892,-913.04,0.00026849,2]
[342023944,1731366669902,-3266.61,0.00026849,2]
[342023945,1731366669911,-500.0,0.00026849,2]
[342023946,1731366669921,-546.62,0.00026849,2]
[342023947,1731366669930,-500.0,0.00026849,2]
[342023948,1731366669940,-515.82,0.00026849,2]
[342023949,1731366669950,-1343.72,0.00026849,2]
[342023950,1731366669961,-1636.7,0.00026849,2]
[342023951,1731366669971,-1206.33,0.00026849,2]
[342023952,1731366669982,-3685.44,0.00026849,2]
[342023953,1731366669997,-862.81,0.00026849,2]
[342023954,1731366670012,-500.0,0.00026849,2]
[342023955,1731366670023,-500.0,0.00026849,2]
[342023956,1731366670034,-4367.84,0.00026849,2]
[342023957,1731366670045,-630.54,0.00026849,2]
[342023958,1731366670056,-500.0,0.00026849,2]
[342023959,1731366670068,-708.15,0.00026849,2]
[342023960,1731366670079,-580.87585881,0.00026849,2]
[342023961,1731366670091,-1032.4,0.00026849,2]
[342023962,1731366670102,-500.0,0.00026849,2]
[342023963,1731366670115,-17226.76,0.00026849,2]
[342023964,1731366670127,-3122.36,0.00026849,2]
[342023965,1731366670138,-10000.0,0.00027,10]
[342023966,1731366670149,-133584.81696351,0.00027,2]
[342023967,1731366670160,-192.22502921,0.00027,2]
[342023968,1731366670172,-6768.15,0.00027,14]
[342023969,1731366670183,-164.844,0.00027,7]
[342023970,1731366670194,-164.844,0.00027,7]
[342023971,1731366670205,-500.0,0.00027,23]
[342023972,1731366670216,-2472.15,0.00027,2]
[342023973,1731366670228,-348.39313473,0.00027123,2]
[342023974,1731366670239,-500.0,0.00027123,2]
[342023975,1731366670267,-260.88369822,0.00027123,2]
[342023976,1731366670279,-605.39,0.00027123,2]
[342023977,1731366670289,-500.0,0.00027123,2]
[342023978,1731366670301,-500.0,0.00027123,2]
[342023979,1731366670311,-500.0,0.00027123,2]
[342023980,1731366670322,-1847.16,0.00027123,2]
[342023981,1731366670333,-500.0,0.00027123,2]
[342023982,1731366670343,-773.58,0.00027123,2]
[342023983,1731366670354,-892.78,0.00027123,2]
[342023984,1731366670367,-500.0,0.00027123,2]
[342023985,1731366670379,-1690.05,0.00027123,2]
[342023986,1731366670389,-500.0,0.00027123,2]
[342023987,1731366670401,-1463.08,0.00027123,2]
[342023988,1731366670412,-597.21,0.00027123,2]
[342023989,1731366670422,-500.0,0.00027123,2]
[342023990,1731366670433,-500.0,0.00027123,2]
[342023991,1731366670444,-1032.03,0.00027123,2]
[342023992,1731366670454,-1391.59,0.00027123,2]
[342023993,1731366670467,-567.95,0.00027123,2]
[342023994,1731366670478,-990.39,0.00027123,2]
[342023995,1731366670489,-616.05,0.00027123,2]
[342023996,1731366670500,-721.99,0.00027123,2]
[342023997,1731366670511,-1000.2,0.00027123,2]
[342023998,1731366670522,-3306.66,0.00027123,2]
[342023999,1731366670533,-913.04,0.00027123,2]
[342024000,1731366670543,-3266.61,0.00027123,2]
[342024001,1731366670554,-546.62,0.00027123,2]
[342024002,1731366670564,-500.0,0.00027123,2]
[342024003,1731366670575,-515.82,0.00027123,2]
[342024004,1731366670585,-1343.72,0.00027123,2]
[342024005,1731366670595,-1636.7,0.00027123,2]
[342024006,1731366670608,-1206.33,0.00027123,2]
[342024007,1731366670618,-3685.44,0.00027123,2]
[342024008,1731366670628,-862.81,0.00027123,2]
[342024009,1731366670638,-4367.84,0.00027123,2]
[342024010,1731366670648,-630.54,0.00027123,2]
[342024011,1731366670657,-367.02,0.00027123,2]
[342024012,1731366670669,-708.15,0.00027123,2]
[342024013,1731366670679,-1032.4,0.00027123,2]
[342024014,1731366670691,-500.0,0.00027123,2]
[342024015,1731366670701,-17226.76,0.00027123,2]
[342024016,1731366670711,-3122.36,0.00027123,2]
[342024017,1731366670721,-160.0,0.00027171,4]
[342024018,1731366670731,-158.3,0.00027182,5]
[342024019,1731366670747,-5368.0,0.00027309,14]
[342024020,1731366670762,-252.0,0.00027386,2]
[342024021,1731366670772,-164.844,0.00027397,7]
[342024022,1731366670782,-164.844,0.00027397,7]
[342024023,1731366670794,-500.0,0.00027397,2]
[342024024,1731366670803,-500.0,0.00027397,2]
[342024025,1731366670813,-500.0,0.00027397,2]
[342024026,1731366670823,-500.0,0.00027397,2]
[342024027,1731366670833,-500.0,0.00027397,2]
[342024028,1731366670843,-500.0,0.00027397,2]
[342024029,1731366670852,-500.0,0.00027397,2]
[342024030,1731366670862,-500.0,0.00027397,2]
[342024031,1731366670948,-175.50557786,0.00027397,2]
[342024032,1731366670958,-500.0,0.00027397,2]
[342024033,1731366670968,-500.0,0.00027397,2]
[342024034,1731366670978,-500.0,0.00027397,2]
[342024035,1731366670987,-500.0,0.00027397,2]
[342024036,1731366671001,-500.0,0.00027397,2]
[342024037,1731366671010,-500.0,0.00027397,2]
[342024038,1731366671019,-568.57401312,0.00027397,2]
[342024039,1731366671029,-480.27349667,0.00027397,2]
[342024040,1731366671038,-500.0,0.00027397,2]
[342024041,1731366671047,-507.64288794,0.00027397,2]
[342024042,1731366671056,-605.39,0.00027397,2]
[342024043,1731366671066,-454.85852931,0.00027397,2]
[342024044,1731366671075,-500.0,0.00027397,2]
[342024045,1731366671084,-500.0,0.00027397,2]
[342024046,1731366671093,-500.0,0.00027397,2]
[342024047,1731366671102,-500.0,0.00027397,6]
[342024048,1731366671112,-500.0,0.00027397,10]
[342024049,1731366671121,-501.0860692,0.00027397,14]
[342024050,1731366671130,-1847.16,0.00027397,2]
[342024051,1731366671140,-500.0,0.00027397,2]
[342024052,1731366671150,-773.58,0.00027397,2]
[342024053,1731366671160,-892.78,0.00027397,2]
[342024054,1731366671169,-500.0,0.00027397,2]
[342024055,1731366671178,-1690.05,0.00027397,2]
[342024056,1731366671188,-444.9624313,0.00027397,2]
[342024057,1731366671198,-1463.08,0.00027397,2]
[342024058,1731366671207,-597.21,0.00027397,2]
[342024059,1731366671216,-500.0,0.00027397,2]
[342024060,1731366671226,-500.0,0.00027397,2]
[342024061,1731366671236,-1032.03,0.00027397,2]
[342024062,1731366671250,-1391.59,0.00027397,2]
[342024063,1731366671260,-567.95,0.00027397,2]
[342024064,1731366671269,-990.39,0.00027397,2]
[342024065,1731366671279,-616.05,0.00027397,2]
[342024066,1731366671288,-721.99,0.00027397,2]
[342024067,1731366671298,-1000.2,0.00027397,2]
[342024068,1731366671308,-1000.0,0.00027397,2]
[342024069,1731366671317,-868.02046499,0.00027397,2]
[342024070,1731366671327,-1000.0,0.00027397,2]
[342024071,1731366671336,-1000.0,0.00027397,2]
[342024072,1731366671346,-1000.0,0.00027397,2]
[342024073,1731366671356,-1002.04220807,0.00027397,2]
[342024074,1731366671366,-3306.66,0.00027397,2]
[342024075,1731366671376,-913.04,0.00027397,2]
[342024076,1731366671386,-3266.61,0.00027397,2]
[342024077,1731366671396,-546.62,0.00027397,2]
[342024078,1731366671406,-500.0,0.00027397,2]
[342024079,1731366671415,-515.82,0.00027397,2]
[342024080,1731366671425,-1343.72,0.00027397,2]
[342024081,1731366671434,-1636.7,0.00027397,2]
[342024082,1731366671444,-1206.33,0.00027397,2]
[342024083,1731366671454,-3685.44,0.00027397,2]
[342024084,1731366671464,-862.81,0.00027397,2]
[342024085,1731366671473,-4367.84,0.00027397,2]
[342024086,1731366671483,-630.54,0.00027397,2]
[342024087,1731366671495,-708.15,0.00027397,2]
[342024088,1731366671505,-1032.4,0.00027397,2]
[342024089,1731366671514,-233.84,0.00027397,2]
[342024090,1731366671524,-17226.76,0.00027397,2]
[342024091,1731366671533,-424.21661069,0.00027397,60]
[342024092,1731366671543,-151.0,0.00027397,7]
[342024093,1731366671552,-151.0,0.00027397,7]
[342024094,1731366671563,-151.0,0.00027397,7]
[342024095,1731366671573,-152.968394,0.00027397,7]
[342024096,1731366671583,-263.833053,0.00027397,2]
[342024097,1731366671592,-263.833053,0.00027397,2]
[342024098,1731366671602,-263.833053,0.00027397,2]
[342024099,1731366671611,-263.833053,0.00027397,2]
[342024100,1731366671621,-263.833053,0.00027397,2]
[342024101,1731366671631,-263.833053,0.00027397,2]
[342024102,1731366671641,-263.833053,0.00027397,2]
[342024103,1731366671651,-263.833053,0.00027397,2]
[342024104,1731366671661,-263.833053,0.00027397,2]
[342024105,1731366671674,-263.833053,0.00027397,2]
[342024106,1731366671684,-263.833053,0.00027397,2]
[342024107,1731366671695,-263.833053,0.00027397,2]
[342024108,1731366671705,-263.833053,0.00027397,2]
[342024109,1731366671716,-263.833053,0.00027397,2]
[342024110,1731366671726,-263.833053,0.00027397,2]
[342024111,1731366671736,-263.833053,0.00027397,2]
[342024112,1731366671750,-263.833053,0.00027397,2]
[342024113,1731366671761,-263.833053,0.00027397,2]
[342024114,1731366671771,-263.833053,0.00027397,2]
[342024115,1731366671781,-263.833047,0.00027397,2]
[342024116,1731366671791,-234.56800665,0.00027397,2]
[342024117,1731366671802,-23252.76,0.000274,14]
[342024118,1731366671812,-1546.44,0.000274,14]
[342024119,1731366671822,-500.0,0.00027409,7]
[342024120,1731366671831,-44306.69182777,0.000275,2]
[342024121,1731366671842,-2768.05767119,0.000275,30]
[342024122,1731366671852,-164.844,0.000275,7]
[342024123,1731366671861,-164.844,0.000275,7]
[342024124,1731366671871,-160.0,0.00027548,5]
[342024125,1731366671881,-823.0,0.00027583,2]